[Event "GER-chT Youth Countries 2019"]
[Site "Wuerzburg"]
[Date "2019.10.02"]
[Round "1"]
[White "Nothnagel, Marian Can"]
[Black "Degenhard, Simon"]
[Result "1-0"]
[ECO "A04"]
[WhiteElo "2376"]
[BlackElo "2084"]
[Annotator "ChessBase"]
[PlyCount "107"]
[EventDate "2019.10.02"]
[EventType "swiss"]
[EventRounds "7"]
[EventCountry "GER"]
[SourceTitle "playchess.com"]
[Source "ChessBase"]
[SourceQuality "1"]
[WhiteTeam "Hessen"]
[BlackTeam "Württemberg"]
[WhiteTeamCountry "GER"]
[BlackTeamCountry "GER"]
[TimeControl "40/5400+30:1800+30"]

1. Nf3 {[%emt 0:00:00]} c5 {[%emt 0:00:00]} 2. g3 {[%emt 0:00:00]} Nc6 {[%emt 0:00:27]} 3. Bg2 {[%emt 0:00:00]} g6 {[%emt 0:00:17]} 4. O-O {[%emt 0:00:00]} Bg7 {[%emt 0:00:07]} 5. d3 {[%emt 0:00:00]} d5 {[%emt 0:00:40]} 6. Nbd2 {[%emt 0:00:00]} e6 {[%emt 0:00:12]} 7. e4 {[%emt 0:00:00]} Nge7 {[%emt 0:00:15]} 8. Re1 {[%emt 0:00:00]} b6 {[%emt 0:00:19]} 9. c3 {[%emt 0:00:00]} a5 {[%emt 0:00:25]} 10. Qe2 {[%emt 0:04:16]} Ba6 {[%emt 0:01:37]} 11. e5 {[%emt 0:00:19]} Qc7 {[%emt 0:04:24]} 12. Nf1 {[%emt 0:00:51]} a4 {[%emt 0:03:54]} 13. h4 {[%emt 0:00:17]} Rd8 {[%emt 0:11:24]} 14. Bf4 {[%emt 0:17:57]} b5 {[%emt 0:16:06]} 15. N1h2 {[%emt 0:12:12]} h5 {[%emt 0:01:12]} 16. Ng5 {[%emt 0:06:20]} Nf5 {[%emt 0:05:22]} 17. a3 {[%emt 0:02:32]} Rd7 {[%emt 0:11:32]} 18. Bh3 {[%emt 0:00:20]} Qd8 {[%emt 0:03:35]} 19. Nhf3 {[%emt 0:01:29]} Na5 {[%emt 0:07:05]} 20. Rad1 {[%emt 0:01:00]} Nb3 {[%emt 0:00:53]} 21. Bxf5 {[%emt 0:00:09]} gxf5 {[%emt 0:00:12]} 22. d4 {[%emt 0:02:49]} Qc8 {[%emt 0:03:27]} 23. Qe3 {[%emt 0:01:50]} b4 {[%emt 0:03:01]} 24. cxb4 {[%emt 0:19:51]} cxb4 {[%emt 0:00:19]} 25. Nd2 {[%emt 0:00:13]} Nxd2 {[%emt 0:07:21]} 26. Qxd2 {[%emt 0:00:40]} b3 {[%emt 0:04:07]} 27. Rc1 {[%emt 0:00:29]} Bc4 {[%emt 0:00:37]} 28. Nh3 {[%emt 0:00:42]} Rc7 {[%emt 0:04:53]} 29. Bg5 {[%emt 0:00:08]} Kd7 {[%emt 0:01:48]} 30. Nf4 {[%emt 0:00:35]} Qa6 {[%emt 0:04:00]} 31. Qd1 {[%emt 0:00:18]} Rhc8 {[%emt 0:01:10]} 32. Nxh5 {[%emt 0:00:10]} Bh8 {[%emt 0:00:17]} 33. Nf4 {[%emt 0:01:57]} Kc6 {[%emt 0:01:04]} 34. Nd3 {[%emt 0:00:06]} Kb6 {[%emt 0:02:23]} 35. Nc5 {[%emt 0:00:52]} Qb5 {[%emt 0:00:14]} 36. Kg2 {[%emt 0:03:07]} Bg7 {[%emt 0:00:29]} 37. h5 {[%emt 0:00:26]} Bf8 {[%emt 0:00:48]} 38. Be3 {[%emt 0:00:07]} f4 {[%emt 0:01:43]} 39. Bxf4 {[%emt 0:00:09]} Bxc5 {[%emt 0:00:11]} 40. dxc5+ {[%emt 0:00:01]} Kxc5 {[%emt 0:01:15]} 41. Be3+ {[%emt 0:30:16]} Kc6 {[%emt 0:30:11]} 42. Qd4 {[%emt 0:00:11]} Kd7 {[%emt 0:00:00]} 43. Qf4 {[%emt 0:00:00]} Ke8 {[%emt 0:00:00]} 44. Qg5 {[%emt 0:00:00]} d4 {[%emt 0:00:00]} 45. Qg8+ {[%emt 0:00:00]} Kd7 {[%emt 0:00:00]} 46. Qxf7+ {[%emt 0:00:00]} Kc6 {[%emt 0:00:00]} 47. Rxc4+ {[%emt 0:00:00]} Qxc4 {[%emt 0:00:00]} 48. Rc1 {[%emt 0:00:00]} Rxf7 {[%emt 0:00:00]} 49. Rxc4+ {[%emt 0:00:00]} Kb7 {[%emt 0:00:00]} 50. Rb4+ {[%emt 0:00:00]} Kc6 {[%emt 0:00:00]} 51. Rxd4 {[%emt 0:00:00]} Kb5 {[%emt 0:00:00]} 52. Rb4+ {[%emt 0:00:00]} Ka5 {[%emt 0:00:00]} 53. Bd2 {[%emt 0:00:00]} Rfc7 {[%emt 0:00:00]} 54. Rxb3+ {[%emt 0:00:00] normal} 1-0

[Event "GER-chT Youth Countries 2019"]
[Site "Wuerzburg"]
[Date "2019.10.02"]
[Round "1"]
[White "Arndt, Magnus"]
[Black "Holinka, Henning"]
[Result "1-0"]
[ECO "B06"]
[WhiteElo "2312"]
[BlackElo "2101"]
[Annotator "NA"]
[PlyCount "71"]
[EventDate "2019.10.02"]
[EventType "swiss"]
[EventRounds "7"]
[EventCountry "GER"]
[SourceTitle "playchess.com"]
[Source "ChessBase"]
[SourceQuality "1"]
[WhiteTeam "Schleswig-Holstein"]
[BlackTeam "Hamburg/Schleswig-Holstein"]
[WhiteTeamCountry "GER"]
[BlackTeamCountry "GER"]
[TimeControl "40/5400+30:1800+30"]

1. e4 {[%emt 0:00:00]} g6 {[%emt 0:00:00]} 2. d4 {[%emt 0:00:00]} Bg7 {[%emt 0:00:00]} 3. Nf3 {[%emt 0:00:00]} d6 {[%emt 0:00:00]} 4. Bd3 {[%emt 0:00:00]} Nc6 {[%emt 0:06:29]} 5. c3 {[%emt 0:01:27]} Nf6 {[%emt 0:02:54]} 6. h3 {[%emt 0:01:21]} e5 {[%emt 0:06:00]} 7. O-O {[%emt 0:01:08]} O-O {[%emt 0:02:02]} 8. Re1 {[%emt 0:01:49]} exd4 {[%emt 0:14:44]} 9. cxd4 {[%emt 0:04:56]} Nb4 {[%emt 0:03:03]} 10. Bf1 {[%emt 0:04:08]} c5 {[%emt 0:03:46]} 11. d5 {[%emt 0:18:00]} Re8 {[%emt 0:07:05]} 12. Nc3 {[%emt 0:06:20]} Bd7 {[%emt 0:10:31]} 13. Bf4 {[%emt 0:07:01]} Qb6 {[%emt 0:04:23]} 14. Nd2 {[%emt 0:05:07]} Bf8 {[%emt 0:12:32]} 15. a3 {[%emt 0:08:13]} Na6 {[%emt 0:00:55]} 16. Nc4 {[%emt 0:00:10]} Qc7 {[%emt 0:02:03]} 17. e5 {[%emt 0:02:34]} dxe5 {[%emt 0:04:26]} 18. Bxe5 {[%emt 0:01:28]} Qd8 {[%emt 0:01:08]} 19. Qf3 {[%emt 0:03:55]} Bg7 {[%emt 0:05:27]} 20. Nd6 {[%emt 0:03:37]} Rxe5 {[%emt 0:03:32]} 21. Rxe5 {[%emt 0:00:19]} Qc7 {[%emt 0:03:03]} 22. Nc4 {[%emt 0:00:46]} Ng4 {[%emt 0:03:40]} 23. d6 {[%emt 0:04:28]} Nxe5 {[%emt 0:00:15]} 24. Nxe5 {[%emt 0:00:07]} Qxd6 {[%emt 0:00:29]} 25. Qxf7+ {[%emt 0:00:09]} Kh8 {[%emt 0:00:04]} 26. Nxd7 {[%emt 0:00:30]} Rd8 {[%emt 0:00:40]} 27. Rd1 {[%emt 0:00:40]} Bd4 {[%emt 0:00:44]} 28. Rxd4 {[%emt 0:01:44]} cxd4 {[%emt 0:01:10]} 29. Nf6 {[%emt 0:00:12]} Qc7 {[%emt 0:00:26]} 30. Qxc7 {[%emt 0:01:22]} Nxc7 {[%emt 0:00:02]} 31. Nb1 {[%emt 0:01:52]} Ne6 {[%emt 0:01:12]} 32. Nd2 {[%emt 0:01:58]} Nc5 {[%emt 0:01:36]} 33. f3 {[%emt 0:02:23]} Na4 {[%emt 0:01:15]} 34. b3 {[%emt 0:02:04]} Nc3 {[%emt 0:00:44]} 35. Bd3 {[%emt 0:04:58]} Kg7 {[%emt 0:00:21]} 36. Nfe4 {[%emt 0:01:12] normal} 1-0

[Event "GER-chT Youth Countries 2019"]
[Site "Wuerzburg"]
[Date "2019.10.02"]
[Round "1"]
[White "Herbrig, Alexander"]
[Black "Tiarks, Jann-Christian"]
[Result "1/2-1/2"]
[ECO "A30"]
[WhiteElo "2295"]
[BlackElo "2178"]
[Annotator "NA"]
[PlyCount "67"]
[EventDate "2019.10.02"]
[EventType "team-tourn"]
[EventRounds "7"]
[EventCountry "GER"]
[SourceTitle "playchess.com"]
[Source "ChessBase"]
[SourceQuality "1"]
[WhiteTeam "Germany"]
[BlackTeam "Germany"]
[WhiteTeamCountry "GER"]
[BlackTeamCountry "GER"]
[TimeControl "40/5400+30:1800+30"]

1. c4 {[%emt 0:00:00]} c5 {[%emt 0:00:00]} 2. Nf3 {[%emt 0:00:00]} Nc6 {[%emt 0:00:00]} 3. d4 {[%emt 0:00:00]} cxd4 {[%emt 0:00:00]} 4. Nxd4 {[%emt 0:00:00]} Nf6 {[%emt 0:00:00]} 5. Nc3 {[%emt 0:00:09]} g6 {[%emt 0:00:00]} 6. g3 {[%emt 0:01:36]} Bg7 {[%emt 0:01:03]} 7. Bg2 {[%emt 0:00:48]} O-O {[%emt 0:00:25]} 8. O-O {[%emt 0:00:05]} Nxd4 {[%emt 0:09:52]} 9. Qxd4 {[%emt 0:00:02]} d6 {[%emt 0:00:33]} 10. Qd2 {[%emt 0:01:09]} Qc7 {[%emt 0:15:58]} 11. b3 {[%emt 0:08:34]} Bd7 {[%emt 0:00:19]} 12. Bb2 {[%emt 0:02:34]} Bc6 {[%emt 0:00:27]} 13. Nd5 {[%emt 0:05:11]} Nxd5 {[%emt 0:16:28]} 14. Bxg7 {[%emt 0:06:09]} Kxg7 {[%emt 0:00:23]} 15. cxd5 {[%emt 0:00:08]} Bd7 {[%emt 0:02:53]} 16. Qd4+ {[%emt 0:00:21]} Kg8 {[%emt 0:03:56]} 17. Rfc1 {[%emt 0:00:43]} Qa5 {[%emt 0:01:53]} 18. b4 {[%emt 0:03:28]} Qa4 {[%emt 0:00:53]} 19. Rc7 {[%emt 0:00:27]} Rab8 {[%emt 0:01:02]} 20. Be4 {[%emt 0:00:16]} Rfc8 {[%emt 0:09:16]} 21. Bc2 {[%emt 0:03:56]} Qb5 {[%emt 0:00:47]} 22. Bd3 {[%emt 0:05:07]} Qa4 {[%emt 0:00:16]} 23. Rac1 {[%emt 0:09:03]} Bh3 {[%emt 0:04:03]} 24. Rxc8+ {[%emt 0:16:28]} Rxc8 {[%emt 0:00:16]} 25. Rxc8+ {[%emt 0:00:50]} Bxc8 {[%emt 0:00:07]} 26. Qc4 {[%emt 0:00:25]} Qd7 {[%emt 0:05:41]} 27. Bc2 {[%emt 0:01:35]} Qd8 {[%emt 0:00:51]} 28. Kg2 {[%emt 0:03:47]} Bd7 {[%emt 0:00:46]} 29. a4 {[%emt 0:09:14]} Qc8 {[%emt 0:04:00]} 30. Qxc8+ {[%emt 0:02:51]} Bxc8 {[%emt 0:00:54]} 31. Kf3 {[%emt 0:01:26]} Bd7 {[%emt 0:00:53]} 32. e4 {[%emt 0:01:10]} Kg7 {[%emt 0:00:40]} 33. Ke3 {[%emt 0:00:31]} f5 {[%emt 0:00:21]} 34. f3 {[%emt 0:07:39] normal} 1/2-1/2

[Event "GER-chT Youth Countries 2019"]
[Site "Wuerzburg"]
[Date "2019.10.02"]
[Round "1"]
[White "Weber, Samuel"]
[Black "Richter, Nils"]
[Result "1/2-1/2"]
[ECO "A15"]
[WhiteElo "2288"]
[BlackElo "2213"]
[Annotator "NA"]
[PlyCount "81"]
[EventDate "2019.10.02"]
[EventType "swiss"]
[EventRounds "7"]
[EventCountry "GER"]
[SourceTitle "playchess.com"]
[Source "ChessBase"]
[SourceQuality "1"]
[WhiteTeam "Hessen"]
[BlackTeam "Württemberg"]
[WhiteTeamCountry "GER"]
[BlackTeamCountry "GER"]
[TimeControl "40/5400+30:1800+30"]

1. c4 {[%emt 0:00:00]} Nf6 {[%emt 0:00:00]} 2. g3 {[%emt 0:00:00]} g6 {[%emt 0:00:00]} 3. Bg2 {[%emt 0:00:14]} Bg7 {[%emt 0:00:00]} 4. Nc3 {[%emt 0:00:06]} O-O {[%emt 0:00:12]} 5. e4 {[%emt 0:00:26]} c5 {[%emt 0:01:26]} 6. Nge2 {[%emt 0:02:49]} Nc6 {[%emt 0:00:52]} 7. O-O {[%emt 0:00:38]} d6 {[%emt 0:01:03]} 8. d3 {[%emt 0:01:19]} Ne8 {[%emt 0:02:04]} 9. Rb1 {[%emt 0:01:51]} Nc7 {[%emt 0:03:32]} 10. a3 {[%emt 0:02:24]} a5 {[%emt 0:00:51]} 11. Be3 {[%emt 0:01:38]} Ne6 {[%emt 0:01:31]} 12. Qd2 {[%emt 0:05:30]} Ned4 {[%emt 0:04:06]} 13. Bxd4 {[%emt 0:06:36]} cxd4 {[%emt 0:07:39]} 14. Nb5 {[%emt 0:03:20]} a4 {[%emt 0:06:22]} 15. b3 {[%emt 0:03:17]} f5 {[%emt 0:06:36]} 16. bxa4 {[%emt 0:25:57]} e5 {[%emt 0:05:19]} 17. exf5 {[%emt 0:01:31]} gxf5 {[%emt 0:02:33]} 18. Bd5+ {[%emt 0:04:09]} Kh8 {[%emt 0:00:08]} 19. f4 {[%emt 0:05:14]} Ra6 {[%emt 0:16:40]} 20. Rbe1 {[%emt 0:06:40]} Ne7 {[%emt 0:06:21]} 21. Bg2 {[%emt 0:05:26]} Ng8 {[%emt 0:03:33]} 22. Nc1 {[%emt 0:03:17]} Re8 {[%emt 0:04:54]} 23. Na2 {[%emt 0:02:31]} Nf6 {[%emt 0:03:40]} 24. Nb4 {[%emt 0:00:54]} Rxa4 {[%emt 0:01:58]} 25. Nd5 {[%emt 0:04:24]} Nxd5 {[%emt 0:01:17]} 26. Bxd5 {[%emt 0:00:12]} Ra6 {[%emt 0:05:39]} 27. Qd1 {[%emt 0:03:58]} Bd7 {[%emt 0:02:32]} 28. Qh5 {[%emt 0:00:16]} Rf8 {[%emt 0:02:26]} 29. a4 {[%emt 0:05:20]} Be8 {[%emt 0:02:52]} 30. Qh3 {[%emt 0:00:22]} Bg6 {[%emt 0:00:59]} 31. Bxb7 {[%emt 0:02:40]} Rxa4 {[%emt 0:00:02]} 32. Qg2 {[%emt 0:01:33]} Qb6 {[%emt 0:03:10]} 33. Qc6 {[%emt 0:01:08]} Qxc6 {[%emt 0:02:33]} 34. Bxc6 {[%emt 0:00:01]} Ra6 {[%emt 0:01:15]} 35. Bb7 {[%emt 0:00:01]} Rb6 {[%emt 0:00:15]} 36. Bd5 {[%emt 0:00:07]} e4 {[%emt 0:02:09]} 37. dxe4 {[%emt 0:00:04]} fxe4 {[%emt 0:00:01]} 38. f5 {[%emt 0:01:38]} Bxf5 {[%emt 0:01:05]} 39. g4 {[%emt 0:00:21]} Bg6 {[%emt 0:00:49]} 40. Rxf8+ {[%emt 0:00:25]} Bxf8 {[%emt 0:00:01]} 41. Nxd4 {[%emt 0:31:18] normal} 1/2-1/2

[Event "GER-chT Youth Countries 2019"]
[Site "Wuerzburg"]
[Date "2019.10.02"]
[Round "1"]
[White "Maetzkow, Maximilian Paul"]
[Black "Nguyen, Alex Dac-Vuong"]
[Result "0-1"]
[ECO "E10"]
[WhiteElo "2287"]
[BlackElo "2128"]
[Annotator "NA"]
[PlyCount "68"]
[EventDate "2019.10.02"]
[EventType "swiss"]
[EventRounds "7"]
[EventCountry "GER"]
[SourceTitle "playchess.com"]
[Source "ChessBase"]
[SourceQuality "1"]
[WhiteTeam "Brandenburg/Berlin"]
[BlackTeam "Sachsen"]
[WhiteTeamCountry "GER"]
[BlackTeamCountry "GER"]
[TimeControl "40/5400+30:1800+30"]

1. d4 {[%emt 0:00:00]} Nf6 {[%emt 0:00:00]} 2. Nf3 {[%emt 0:00:00]} c5 {[%emt 0:00:00]} 3. d5 {[%emt 0:00:31]} e6 {[%emt 0:00:00]} 4. c4 {[%emt 0:00:24]} b5 {[%emt 0:00:00]} 5. e3 {[%emt 0:13:54]} Bb7 {[%emt 0:00:21]} 6. dxe6 {[%emt 0:00:25]} fxe6 {[%emt 0:00:07]} 7. cxb5 {[%emt 0:00:12]} d5 {[%emt 0:00:11]} 8. Be2 {[%emt 0:00:23]} Bd6 {[%emt 0:00:08]} 9. b3 {[%emt 0:01:38]} Nbd7 {[%emt 0:00:06]} 10. Bb2 {[%emt 0:00:39]} O-O {[%emt 0:00:13]} 11. Nbd2 {[%emt 0:02:36]} Qe7 {[%emt 0:01:00]} 12. O-O {[%emt 0:13:06]} Rad8 {[%emt 0:03:31]} 13. Qc2 {[%emt 0:04:12]} e5 {[%emt 0:09:52]} 14. e4 {[%emt 0:12:33]} Nxe4 {[%emt 0:00:14]} 15. Nxe4 {[%emt 0:00:05]} dxe4 {[%emt 0:00:06]} 16. Nd2 {[%emt 0:00:01]} Nf6 {[%emt 0:13:33]} 17. Nc4 {[%emt 0:03:52]} Bc7 {[%emt 0:11:02]} 18. Ne3 {[%emt 0:04:24]} Kh8 {[%emt 0:11:37]} 19. Rac1 {[%emt 0:04:15]} Bb6 {[%emt 0:00:14]} 20. Bc4 {[%emt 0:02:43]} Nh5 {[%emt 0:05:37]} 21. Rcd1 {[%emt 0:11:24]} Nf4 {[%emt 0:02:28]} 22. Rxd8 {[%emt 0:02:02]} Rxd8 {[%emt 0:04:08]} 23. Rd1 {[%emt 0:05:39]} Rd4 {[%emt 0:09:09]} 24. Bxd4 {[%emt 0:02:18]} exd4 {[%emt 0:07:03]} 25. Nf5 {[%emt 0:00:36]} Qg5 {[%emt 0:00:19]} 26. Ng3 {[%emt 0:00:00]} h5 {[%emt 0:04:51]} 27. h4 {[%emt 0:02:45]} Qxh4 {[%emt 0:00:09]} 28. Bf1 {[%emt 0:00:50]} Qg4 {[%emt 0:01:28]} 29. Re1 {[%emt 0:02:11]} h4 {[%emt 0:03:51]} 30. Nxe4 {[%emt 0:02:50]} Nh3+ {[%emt 0:04:41]} 31. Kh1 {[%emt 0:05:33]} Bxe4 {[%emt 0:00:12]} 32. Qe2 {[%emt 0:00:05]} Qxe2 {[%emt 0:04:40]} 33. Rxe2 {[%emt 0:00:03]} d3 {[%emt 0:00:44]} 34. Rd2 {[%emt 0:01:10]} Ba5 {[%emt 0:00:22] normal} 0-1

[Event "GER-chT Youth Countries 2019"]
[Site "Wuerzburg"]
[Date "2019.10.02"]
[Round "1"]
[White "Polster, Christian"]
[Black "Pahl, Erik"]
[Result "0-1"]
[ECO "B56"]
[WhiteElo "2279"]
[BlackElo "2081"]
[Annotator "NA"]
[PlyCount "88"]
[EventDate "2019.10.02"]
[EventType "swiss"]
[EventRounds "7"]
[EventCountry "GER"]
[SourceTitle "playchess.com"]
[Source "ChessBase"]
[SourceQuality "1"]
[WhiteTeam "Niedersachsen"]
[BlackTeam "Bremen/Niedersachsen"]
[WhiteTeamCountry "GER"]
[BlackTeamCountry "GER"]
[TimeControl "40/5400+30:1800+30"]

1. e4 {[%emt 0:00:00]} c5 {[%emt 0:00:00]} 2. Nf3 {[%emt 0:00:00]} d6 {[%emt 0:00:00]} 3. d4 {[%emt 0:00:00]} cxd4 {[%emt 0:00:00]} 4. Nxd4 {[%emt 0:00:00]} Nf6 {[%emt 0:00:00]} 5. Nc3 {[%emt 0:00:01]} Bd7 {[%emt 0:00:32]} 6. f3 {[%emt 0:02:21]} e5 {[%emt 0:01:48]} 7. Nb3 {[%emt 0:01:32]} Be7 {[%emt 0:00:45]} 8. Be3 {[%emt 0:01:18]} O-O {[%emt 0:00:31]} 9. Qd2 {[%emt 0:09:12]} a5 {[%emt 0:00:18]} 10. a4 {[%emt 0:02:54]} Na6 {[%emt 0:00:40]} 11. Nd5 {[%emt 0:32:35]} Nxd5 {[%emt 0:05:14]} 12. exd5 {[%emt 0:01:55]} b6 {[%emt 0:06:56]} 13. Be2 {[%emt 0:03:32]} Nc5 {[%emt 0:02:25]} 14. Nxc5 {[%emt 0:01:07]} bxc5 {[%emt 0:00:28]} 15. O-O {[%emt 0:01:03]} f5 {[%emt 0:01:41]} 16. Bb5 {[%emt 0:04:27]} f4 {[%emt 0:06:08]} 17. Bf2 {[%emt 0:00:53]} Bf5 {[%emt 0:00:20]} 18. c3 {[%emt 0:04:50]} Bh4 {[%emt 0:02:18]} 19. b4 {[%emt 0:03:00]} Bxf2+ {[%emt 0:00:17]} 20. Rxf2 {[%emt 0:00:10]} Qb6 {[%emt 0:00:18]} 21. bxa5 {[%emt 0:03:25]} Rxa5 {[%emt 0:02:47]} 22. c4 {[%emt 0:02:08]} g5 {[%emt 0:03:21]} 23. Ra2 {[%emt 0:04:11]} Rfa8 {[%emt 0:08:37]} 24. Rb2 {[%emt 0:02:41]} Qc7 {[%emt 0:00:36]} 25. Bc6 {[%emt 0:05:11]} R8a7 {[%emt 0:00:21]} 26. Qe1 {[%emt 0:07:10]} Bd7 {[%emt 0:11:01]} 27. Qb1 {[%emt 0:02:00]} Bxc6 {[%emt 0:08:26]} 28. dxc6 {[%emt 0:02:26]} Rxa4 {[%emt 0:01:36]} 29. Rf1 {[%emt 0:03:11]} R4a6 {[%emt 0:13:58]} 30. Qf5 {[%emt 0:00:55]} Rxc6 {[%emt 0:04:04]} 31. Rfb1 {[%emt 0:00:38]} Qe7 {[%emt 0:01:12]} 32. h4 {[%emt 0:00:33]} Rca6 {[%emt 0:05:01]} 33. Rb8+ {[%emt 0:00:31]} Kg7 {[%emt 0:00:11]} 34. hxg5 {[%emt 0:00:17]} Ra1 {[%emt 0:01:22]} 35. Rxa1 {[%emt 0:00:50]} Rxa1+ {[%emt 0:00:08]} 36. Kf2 {[%emt 0:00:27]} Ra7 {[%emt 0:04:26]} 37. Qc8 {[%emt 0:00:33]} Qxg5 {[%emt 0:03:12]} 38. Qf8+ {[%emt 0:00:30]} Kg6 {[%emt 0:00:06]} 39. Qxd6+ {[%emt 0:00:28]} Kh5 {[%emt 0:00:12]} 40. Ke2 {[%emt 0:00:33]} Ra2+ {[%emt 0:03:44]} 41. Kd1 {[%emt 0:01:57]} Ra1+ {[%emt 0:00:12]} 42. Kc2 {[%emt 0:00:37]} Qxg2+ {[%emt 0:00:09]} 43. Kc3 {[%emt 0:00:11]} Rc1+ {[%emt 0:00:11]} 44. Kd3 {[%emt 0:00:04]} Qc2# {normal} 0-1

[Event "GER-chT Youth Countries 2019"]
[Site "Wuerzburg"]
[Date "2019.10.02"]
[Round "1"]
[White "Fuchs, Florian"]
[Black "Bardorz, Jana"]
[Result "0-1"]
[ECO "E73"]
[WhiteElo "2256"]
[BlackElo "1929"]
[Annotator "NA"]
[PlyCount "83"]
[EventDate "2019.10.02"]
[EventType "swiss"]
[EventRounds "7"]
[EventCountry "GER"]
[SourceTitle "playchess.com"]
[Source "ChessBase"]
[SourceQuality "1"]
[WhiteTeam "Bayern 2"]
[BlackTeam "Bayern 1"]
[WhiteTeamCountry "GER"]
[BlackTeamCountry "GER"]
[TimeControl "40/5400+30:1800+30"]

1. d4 {[%emt 0:00:00]} Nf6 {[%emt 0:00:00]} 2. c4 {[%emt 0:00:00]} g6 {[%emt 0:00:00]} 3. Nc3 {[%emt 0:00:00]} Bg7 {[%emt 0:00:00]} 4. e4 {[%emt 0:00:00]} d6 {[%emt 0:00:00]} 5. Be2 {[%emt 0:00:09]} O-O {[%emt 0:00:06]} 6. Bg5 {[%emt 0:00:10]} c5 {[%emt 0:03:46]} 7. d5 {[%emt 0:00:06]} Nbd7 {[%emt 0:03:29]} 8. Qd2 {[%emt 0:01:03]} a6 {[%emt 0:05:32]} 9. g4 {[%emt 0:15:07]} b5 {[%emt 0:06:15]} 10. cxb5 {[%emt 0:05:59]} axb5 {[%emt 0:03:50]} 11. f3 {[%emt 0:00:34]} b4 {[%emt 0:06:37]} 12. Nd1 {[%emt 0:00:21]} Ba6 {[%emt 0:07:03]} 13. Bh6 {[%emt 0:05:17]} Ne5 {[%emt 0:06:02]} 14. Bxg7 {[%emt 0:01:01]} Kxg7 {[%emt 0:00:16]} 15. Nf2 {[%emt 0:05:38]} Qa5 {[%emt 0:08:08]} 16. f4 {[%emt 0:03:06]} Nc4 {[%emt 0:02:50]} 17. Bxc4 {[%emt 0:02:44]} Bxc4 {[%emt 0:00:07]} 18. g5 {[%emt 0:00:14]} Nh5 {[%emt 0:02:35]} 19. b3 {[%emt 0:00:37]} Bb5 {[%emt 0:03:17]} 20. Ngh3 {[%emt 0:03:22]} Bd7 {[%emt 0:10:03]} 21. Rg1 {[%emt 0:07:49]} Qa6 {[%emt 0:05:47]} 22. Ng4 {[%emt 0:06:07]} Qc8 {[%emt 0:03:13]} 23. Nhf2 {[%emt 0:05:51]} f6 {[%emt 0:03:35]} 24. f5 {[%emt 0:04:32]} Kf7 {[%emt 0:04:53]} 25. gxf6 {[%emt 0:02:14]} exf6 {[%emt 0:02:35]} 26. Qh6 {[%emt 0:01:08]} Rh8 {[%emt 0:02:20]} 27. Ne3 {[%emt 0:17:13]} Qg8 {[%emt 0:00:39]} 28. Nc4 {[%emt 0:00:30]} Ra6 {[%emt 0:01:47]} 29. Ng4 {[%emt 0:07:56]} Qg7 {[%emt 0:02:18]} 30. a4 {[%emt 0:03:10]} bxa3 {[%emt 0:01:31]} 31. Rxa3 {[%emt 0:00:20]} Rxa3 {[%emt 0:00:11]} 32. Nxa3 {[%emt 0:00:24]} Qxh6 {[%emt 0:01:24]} 33. Nxh6+ {[%emt 0:00:05]} Kg7 {[%emt 0:00:42]} 34. Ng4 {[%emt 0:00:04]} Ra8 {[%emt 0:01:48]} 35. Nc4 {[%emt 0:00:45]} Ra1+ {[%emt 0:02:10]} 36. Kf2 {[%emt 0:00:04]} Rxg1 {[%emt 0:00:24]} 37. Kxg1 {[%emt 0:00:05]} gxf5 {[%emt 0:00:46]} 38. exf5 {[%emt 0:00:06]} Bxf5 {[%emt 0:00:12]} 39. Nge3 {[%emt 0:00:06]} Bg6 {[%emt 0:02:01]} 40. Nxd6 {[%emt 0:00:17]} Nf4 {[%emt 0:00:34]} 41. Ndc4 {[%emt 0:33:42]} Kf7 {[%emt 0:02:34]} 42. d6 {[%emt 0:00:00] normal} 0-1

[Event "GER-chT Youth Countries 2019"]
[Site "Wuerzburg"]
[Date "2019.10.02"]
[Round "1"]
[White "Sieber, Fiona"]
[Black "Lange, Jannis"]
[Result "1-0"]
[ECO "B30"]
[WhiteElo "2252"]
[BlackElo "2080"]
[Annotator "NA"]
[PlyCount "79"]
[EventDate "2019.10.02"]
[EventType "swiss"]
[EventRounds "7"]
[EventCountry "GER"]
[SourceTitle "playchess.com"]
[Source "ChessBase"]
[SourceQuality "1"]
[WhiteTeam "Germany"]
[BlackTeam "Germany"]
[WhiteTeamCountry "GER"]
[BlackTeamCountry "GER"]
[TimeControl "40/5400+30:1800+30"]

1. e4 {[%emt 0:00:00]} c5 {[%emt 0:00:00]} 2. Nf3 {[%emt 0:00:00]} Nc6 {[%emt 0:00:00]} 3. Nc3 {[%emt 0:00:00]} d6 {[%emt 0:03:01]} 4. d4 {[%emt 0:00:00]} cxd4 {[%emt 0:01:00]} 5. Nxd4 {[%emt 0:00:00]} e5 {[%emt 0:00:43]} 6. Nf5 {[%emt 0:00:09]} Bxf5 {[%emt 0:06:48]} 7. exf5 {[%emt 0:00:05]} Nd4 {[%emt 0:01:21]} 8. Be3 {[%emt 0:02:13]} Nc6 {[%emt 0:08:04]} 9. Bc4 {[%emt 0:10:00]} Nf6 {[%emt 0:01:10]} 10. g4 {[%emt 0:05:32]} Qa5 {[%emt 0:12:25]} 11. g5 {[%emt 0:13:52]} Ne4 {[%emt 0:08:17]} 12. Qd5 {[%emt 0:02:09]} Qxd5 {[%emt 0:11:28]} 13. Nxd5 {[%emt 0:00:09]} Rc8 {[%emt 0:01:25]} 14. f3 {[%emt 0:04:05]} Nc5 {[%emt 0:00:10]} 15. O-O-O {[%emt 0:01:43]} Ne7 {[%emt 0:07:20]} 16. f6 {[%emt 0:06:06]} Nf5 {[%emt 0:08:18]} 17. Rhe1 {[%emt 0:04:00]} a6 {[%emt 0:01:20]} 18. Bxc5 {[%emt 0:17:45]} Rxc5 {[%emt 0:00:28]} 19. Bf1 {[%emt 0:06:13]} h6 {[%emt 0:02:34]} 20. b4 {[%emt 0:04:24]} Rc8 {[%emt 0:00:15]} 21. Bh3 {[%emt 0:07:46]} g6 {[%emt 0:01:17]} 22. Bxf5 {[%emt 0:01:41]} gxf5 {[%emt 0:00:04]} 23. h4 {[%emt 0:00:16]} hxg5 {[%emt 0:04:18]} 24. hxg5 {[%emt 0:00:02]} Rh2 {[%emt 0:01:45]} 25. Rd2 {[%emt 0:01:07]} Rxd2 {[%emt 0:03:22]} 26. Kxd2 {[%emt 0:00:02]} Rc4 {[%emt 0:00:16]} 27. c3 {[%emt 0:00:19]} Rh4 {[%emt 0:00:47]} 28. f4 {[%emt 0:04:41]} e4 {[%emt 0:00:15]} 29. a4 {[%emt 0:04:28]} Rh3 {[%emt 0:06:19]} 30. Ne3 {[%emt 0:01:06]} Rf3 {[%emt 0:00:23]} 31. Rf1 {[%emt 0:01:23]} Rh3 {[%emt 0:08:16]} 32. Nxf5 {[%emt 0:00:13]} Rh2+ {[%emt 0:00:14]} 33. Ke3 {[%emt 0:00:33]} d5 {[%emt 0:00:02]} 34. Rd1 {[%emt 0:01:36]} Rh3+ {[%emt 0:00:07]} 35. Kd4 {[%emt 0:00:10]} Rf3 {[%emt 0:01:05]} 36. Ke5 {[%emt 0:02:20]} Rxc3 {[%emt 0:00:10]} 37. Rxd5 {[%emt 0:00:05]} e3 {[%emt 0:00:07]} 38. Ng7+ {[%emt 0:00:30]} Bxg7 {[%emt 0:00:41]} 39. fxg7 {[%emt 0:00:01]} f6+ {[%emt 0:00:05]} 40. Ke4 {normal} 1-0